fUST/lending_fUST_20250502
["ID","MTS","AMOUNT","RATE_DAILY","PERIOD"]
[359558207,1746124239761,-500.0,0.00019973,2]
[359558208,1746124239770,-500.0,0.00019973,2]
[359558209,1746124239779,-500.0,0.00019973,2]
[359558210,1746124239789,-151.82832976,0.00019973,2]
[359558211,1746124239798,-500.0,0.00019973,2]
[359558212,1746124239809,-554.54832201,0.00019973,2]
[359558213,1746124239819,-500.0,0.00019973,2]
[359558214,1746124239828,-524.55896372,0.00019973,2]
[359558215,1746124239838,-500.0,0.00019973,2]
[359558216,1746124239847,-500.0,0.00019973,2]
[359558217,1746124239857,-500.0,0.00019973,2]
[359558218,1746124239867,-500.0,0.00019973,2]
[359558219,1746124239876,-500.0,0.00019973,2]
[359558220,1746124239886,-151.0,0.0001999,2]
[359558221,1746124239896,-151.0,0.0001999,2]
[359558222,1746124239905,-151.0,0.0001999,2]
[359558223,1746124239915,-151.0,0.0001999,2]
[359558224,1746124239925,-151.0,0.0001999,2]
[359558225,1746124239936,-1053.280763,0.0001999,2]
[359558226,1746124239945,-1053.280763,0.0001999,2]
[359558227,1746124239955,-151.0,0.0001999,2]
[359558228,1746124239964,-376.957183,0.0001999,2]
[359558229,1746124239974,-376.957183,0.0001999,2]
[359558230,1746124239983,-1176.90700711,0.0002,2]
[359558231,1746124239993,-358.38724253,0.0002,2]
[359558232,1746124240003,-1181.14387494,0.0002,2]
[359558234,1746124240013,-10298.65884988,0.0002,2]
[359558236,1746124240022,-4794.33654578,0.0002,2]
[359558238,1746124240032,-160.0,0.0002,3]
[359558240,1746124240042,-7355.83785821,0.00020064,2]
[359558242,1746124240051,-500.0,0.0002015,2]
[359558244,1746124240060,-247.0,0.00020386,2]
[359558246,1746124240070,-500.0,0.00020424,2]
[359558248,1746124240080,-151.0,0.000205,3]
[359558250,1746124240089,-3461.6,0.00020688,3]
[359558252,1746124240098,-1730.8,0.00020688,3]
[359558254,1746124240110,-865.4,0.00020688,3]
[359558256,1746124240120,-432.7,0.00020688,3]
[359558258,1746124240130,-160.0,0.00020688,3]
[359558260,1746124240139,-841.10298755,0.00020688,3]
[359558263,1746124240149,-608.190841,0.00020688,2]
[359558265,1746124240159,-608.190841,0.00020688,2]
[359558267,1746124240169,-320.0,0.00020698,2]
[359558269,1746124240179,-2436.22433264,0.00020765,2]
[359558271,1746124240190,-316.0,0.00020845,2]
[359558272,1746124240200,-172.07465134,0.00020895,2]
[359558273,1746124240210,-8176.50034295,0.00020906,2]
[359558274,1746124240225,-15968.21458388,0.00020906,2]
[359558275,1746124240235,-151.0,0.00021,3]
[359558276,1746124240245,-169.8954447,0.00021,2]
[359558277,1746124240254,-500.0,0.00021,2]
[359558278,1746124240263,-266.94622411,0.00021,2]
[359558279,1746124240273,-600.0,0.00021016,2]
[359558280,1746124240283,-486.36038295,0.00021023,2]
[359558281,1746124240293,-420.0,0.00021048,2]
[359558282,1746124240303,-420.0,0.00021048,2]
[359558283,1746124240312,-380.0,0.00021049,2]
[359558292,1746124240512,-1464.0686977,0.00021123,2]
[359558294,1746124240522,-173.643399,0.00021123,2]
[359558296,1746124240531,-151.0,0.00021123,2]
[359558298,1746124240541,-173.643399,0.00021123,2]
[359558300,1746124240550,-151.0,0.00021123,2]
[359558302,1746124240559,-151.0,0.00021123,2]
[359558304,1746124240569,-197.251598,0.00021123,2]
[359558306,1746124240579,-151.0,0.00021123,2]
[359558308,1746124240588,-240.801933,0.00021123,2]
[359558310,1746124240598,-1680.0,0.00021151,2]
[359558313,1746124240608,-500.0,0.00021173,2]
[359558315,1746124240617,-509.96264343,0.00021173,2]
[359558317,1746124240626,-151.0,0.00021173,2]
[359558319,1746124240636,-299.411096,0.00021173,2]
[359558321,1746124240646,-299.411096,0.00021173,2]
[359558323,1746124240655,-4445.658596,0.00021173,2]
[359558325,1746124240666,-4445.658596,0.00021173,2]
[359558327,1746124240680,-198.316186,0.00021173,2]
[359558329,1746124240689,-250.0,0.00021175,2]
[359558331,1746124240699,-174.16373671,0.0002122,2]
[359558333,1746124240708,-6923.2,0.00021278,3]
[359558335,1746124240718,-267.0,0.00021314,2]
[359558337,1746124240727,-151.0,0.00021323,2]
[359558339,1746124240736,-151.0,0.000215,4]
[359558341,1746124240746,-1514.82425503,0.00021638,2]
[359558343,1746124240755,-157.57,0.00021803,2]
[359558345,1746124240765,-6341.35394396,0.00021829,2]
[359558348,1746124240775,-160.0,0.00021882,2]
[359558350,1746124240784,-151.0,0.000219,3]
[359558352,1746124240795,-500.0,0.00021918,2]
[359558354,1746124240805,-500.0,0.00021918,2]
[359558356,1746124240814,-334.87981182,0.00021918,2]
[359558358,1746124240823,-426.51870749,0.00021973,2]
[359558360,1746124240833,-586.8780695,0.00021973,2]
[359558362,1746124240843,-209.25013091,0.00021973,2]
[359558364,1746124240852,-160.7576221,0.00021973,2]
[359558366,1746124240861,-500.0,0.00021973,2]
[359558368,1746124240870,-151.0,0.00022,4]
[359558370,1746124240878,-500.0,0.00022473,2]
[359558372,1746124240887,-160.0,0.00022487,3]
[359558374,1746124240895,-12595.7684382,0.00022487,3]
[359558376,1746124240904,-500.0,0.000225,2]
[359558378,1746124240913,-500.0,0.000225,2]
[359558381,1746124240923,-500.0,0.000225,2]
[359558383,1746124240932,-500.44752969,0.000225,2]
[359558385,1746124240939,-151.0,0.000225,8]
[359558387,1746124240947,-151.0,0.000225,6]
[359558389,1746124240958,-900.0,0.0002266,2]
[359558391,1746124240972,-223.48068453,0.00022692,2]
[359558393,1746124240981,-494.15484802,0.00022734,2]
[359558395,1746124240988,-587.0,0.00022935,2]
[359558397,1746124240996,-587.0,0.00022935,2]
[359558399,1746124241005,-3112.7,0.0002299,7]
[359558401,1746124241013,-3112.7,0.0002299,7]
[359558403,1746124241021,-3112.7,0.0002299,7]
[359558405,1746124241029,-3112.7,0.0002299,7]
[359558407,1746124241037,-160.0,0.0002299,7]
[359558409,1746124241045,-266.522939,0.0002299,7]
[359558411,1746124241053,-266.522939,0.0002299,7]
[359558413,1746124241060,-156.936783,0.0002299,7]
[359558415,1746124241068,-182.07995741,0.0002299,7]
[359558417,1746124241077,-160.0,0.0002299,7]
[359558419,1746124241086,-12595.7684382,0.0002299,7]
[359558421,1746124241095,-160.0,0.0002299,7]
[359558423,1746124241105,-841.10298755,0.0002299,7]
[359558426,1746124241118,-151.0,0.00023,8]
[359558428,1746124241128,-151.0,0.00023,9]
[359558430,1746124241139,-160.0,0.00023,3]
[359558432,1746124241149,-247.22811299,0.00023,2]
[359558434,1746124241158,-160.0,0.00023,3]
[359558436,1746124241167,-160.0,0.00023,3]
[359558438,1746124241177,-500.0,0.00023033,2]
[359558440,1746124241188,-2351.0,0.00023158,2]
[359558442,1746124241197,-182.07995741,0.00023263,3]
[359558444,1746124241207,-421.4777418,0.00023263,3]
[359558446,1746124241216,-151.0,0.000235,8]
[359558448,1746124241226,-324.35783746,0.00023551,2]
[359558450,1746124241236,-151.0,0.000236,10]
[359558452,1746124241245,-500.0,0.00023667,2]
[359558454,1746124241256,-6341.35394396,0.00023693,2]
[359558456,1746124241265,-151.0,0.00023849,7]
[359558458,1746124241274,-151.0,0.00023849,7]
[359558460,1746124241284,-151.0,0.00023849,7]
[359558462,1746124241293,-151.0,0.00023849,7]
[359558464,1746124241302,-1053.280763,0.00023849,7]
[359558466,1746124241312,-1053.280763,0.00023849,7]
[359558468,1746124241321,-151.0,0.00023849,7]
[359558470,1746124241331,-376.957183,0.00023849,7]
[359558472,1746124241340,-376.957183,0.00023849,7]
[359558474,1746124241349,-466.4577424,0.0002387,2]
[359558476,1746124241359,-152.15346145,0.000239,2]
[359558478,1746124241368,-410.27838435,0.0002399,2]
[359558480,1746124241378,-151.0,0.00024,10]
[359558482,1746124241387,-421.4777418,0.00024,7]
[359558484,1746124241397,-160.0,0.00024,7]
[359558486,1746124241406,-160.0,0.00024,7]
[359558489,1746124241416,-160.0,0.00024,7]
[359558491,1746124241426,-1514.82425503,0.00024049,2]
[359558493,1746124241435,-151.0,0.000242,10]
[359558495,1746124241445,-1397.15181376,0.000242,10]
[359558497,1746124241454,-1397.15181366,0.000242,10]
[359558499,1746124241463,-1397.15181366,0.000242,10]
[359558501,1746124241474,-1397.15181366,0.000242,10]
[359558503,1746124241483,-1397.15181366,0.000242,10]
[359558505,1746124241493,-1397.15181366,0.000242,10]
[359558507,1746124241503,-160.0,0.00024245,10]
[359558509,1746124241513,-841.10298755,0.00024245,10]
[359558511,1746124241523,-1397.15181366,0.00024245,10]
[359558513,1746124241532,-1200.0,0.00024304,2]
[359558515,1746124241542,-151.0,0.000245,9]
[359558517,1746124241552,-160.0,0.00024597,2]
[359558519,1746124241561,-2000.0,0.00024619,4]
[359558521,1746124241571,-160.0,0.00024639,2]
[359558523,1746124241581,-979.6205695,0.00024658,3]
[359558525,1746124241590,-151.0,0.000247,9]
[359558527,1746124241600,-500.0,0.00024852,2]
[359558529,1746124241610,-1000.0,0.00024852,2]
[359558531,1746124241619,-1000.0,0.00024852,2]
[359558533,1746124241629,-500.0,0.00024852,2]
[359558535,1746124241640,-1000.0,0.00024852,2]
[359558537,1746124241650,-1000.0,0.00024852,2]
[359558539,1746124241659,-1000.0,0.00024852,2]
[359558541,1746124241669,-500.63328036,0.00024873,2]
[359558543,1746124241679,-500.0,0.00024873,2]
[359558545,1746124241688,-500.0,0.00024873,2]
[359558547,1746124241698,-500.0,0.00024873,2]
[359558549,1746124241708,-490.42306879,0.00024873,2]
[359558552,1746124241718,-500.0,0.00024873,2]
[359558554,1746124241728,-500.0,0.00024873,2]
[359558555,1746124241738,-500.0,0.00024873,2]
[359558557,1746124241748,-500.0,0.00024873,2]
[359558560,1746124241758,-500.0,0.00024873,2]
[359558562,1746124241768,-500.0,0.00024873,2]
[359558564,1746124241778,-500.0,0.00024873,2]
[359558566,1746124241788,-500.0,0.00024873,2]
[359558568,1746124241798,-522.08528673,0.00024873,2]
[359558569,1746124241808,-270.46070821,0.00024873,2]
[359558571,1746124241818,-500.0,0.00024873,2]
[359558572,1746124241828,-500.0,0.00024873,2]
[359558574,1746124241838,-500.23084466,0.00024873,2]
[359558575,1746124241847,-300.0,0.00024873,2]
[359558577,1746124241857,-500.0,0.00024873,2]
[359558579,1746124241867,-520.82326005,0.00024873,2]
[359558580,1746124241876,-501.14258668,0.00024873,2]
[359558582,1746124241886,-502.79927213,0.00024873,2]
[359558583,1746124241895,-608.190841,0.00024873,7]
[359558585,1746124241905,-608.190841,0.00024873,7]
[359558587,1746124241915,-406.8437366,0.00024899,2]
[359558588,1746124241925,-2519.114059,0.00024899,2]
[359558590,1746124241935,-500.0,0.00024899,2]
[359558591,1746124241944,-151.0,0.000249,7]
[359558593,1746124241954,-151.0,0.000249,7]
[359558595,1746124241963,-231.082847,0.000249,7]
[359558596,1746124241973,-151.0,0.000249,7]
[359558598,1746124241983,-151.0,0.000249,7]
[359558599,1746124241992,-970.490497,0.000249,7]
[359558601,1746124242002,-970.490497,0.000249,7]
[359558602,1746124242012,-164.858528,0.000249,7]
[359558604,1746124242021,-164.858528,0.000249,7]
[359558605,1746124242030,-151.0,0.000249,7]
[359558607,1746124242040,-686.873696,0.000249,7]
[359558609,1746124242049,-686.873696,0.000249,7]
[359558611,1746124242058,-189.100894,0.000249,7]
[359558612,1746124242067,-189.100894,0.000249,7]
[359558614,1746124242076,-151.0,0.000249,7]
[359558615,1746124242086,-292.155656,0.000249,7]
[359558617,1746124242096,-220.806371,0.000249,7]
[359558619,1746124242106,-186.921263,0.000249,7]
[359558620,1746124242118,-186.921263,0.000249,7]
[359558622,1746124242128,-151.0,0.000249,7]
[359558624,1746124242138,-151.0,0.000249,7]
[359558626,1746124242148,-151.0,0.000249,7]
[359558628,1746124242158,-266.522939,0.000249,7]
[359558629,1746124242167,-210.126378,0.000249,7]
[359558631,1746124242177,-266.522939,0.000249,7]
[359558632,1746124242188,-210.126378,0.000249,7]
[359558634,1746124242200,-180.60734,0.000249,7]
[359558636,1746124242209,-180.60734,0.000249,7]
[359558638,1746124242219,-151.0,0.000249,7]
[359558639,1746124242229,-151.0,0.000249,7]
[359558641,1746124242239,-151.0,0.000249,7]
[359558643,1746124242249,-151.0,0.000249,7]
[359558645,1746124242259,-1053.280763,0.000249,7]
[359558646,1746124242270,-1053.280763,0.000249,7]
[359558648,1746124242279,-151.0,0.000249,7]
[359558650,1746124242288,-174.849355,0.000249,7]
[359558651,1746124242298,-376.957183,0.000249,7]
[359558653,1746124242308,-299.411096,0.000249,7]
[359558655,1746124242319,-376.957183,0.000249,7]
[359558657,1746124242328,-299.411096,0.000249,7]
[359558658,1746124242339,-398280.483663,0.000249,2]
[359558660,1746124242348,-4445.658596,0.000249,2]
[359558662,1746124242358,-4445.658596,0.000249,2]
[359558663,1746124242368,-173.643399,0.000249,7]
[359558665,1746124242377,-173.643399,0.000249,7]
[359558667,1746124242387,-151.0,0.000249,7]
[359558668,1746124242396,-151.0,0.000249,7]
[359558670,1746124242405,-173.643399,0.000249,7]
[359558672,1746124242415,-173.643399,0.000249,7]
[359558673,1746124242425,-208.704308,0.000249,7]
[359558675,1746124242434,-151.0,0.000249,7]
[359558677,1746124242443,-151.0,0.000249,7]
[359558679,1746124242452,-151.0,0.000249,7]
[359558680,1746124242462,-151.0,0.000249,7]
[359558682,1746124242471,-608.190841,0.000249,7]
[359558684,1746124242480,-608.190841,0.000249,7]
[359558685,1746124242490,-240.801933,0.000249,7]
[359558687,1746124242499,-240.801933,0.000249,7]
[359558689,1746124242508,-1397.15181366,0.00024969,12]
[359558690,1746124242518,-629.34070282,0.00024973,2]
[359558692,1746124242527,-500.0,0.00024973,2]
[359558694,1746124242536,-500.0,0.00024973,2]
[359558695,1746124242545,-500.0,0.00024973,2]
[359558697,1746124242554,-501.10142307,0.00024973,2]
[359558699,1746124242564,-500.0,0.00024973,2]
[359558700,1746124242573,-500.0,0.00024973,2]
[359558702,1746124242582,-501.18180168,0.00024973,2]
[359558704,1746124242591,-257.36977579,0.00024973,2]
[359558705,1746124242601,-500.0,0.00024973,2]
[359558707,1746124242610,-500.0,0.00024973,2]
[359558709,1746124242619,-500.0,0.00024973,2]
[359558710,1746124242629,-500.0,0.00024973,2]
[359558712,1746124242639,-629.0162293,0.00024973,2]
[359558714,1746124242648,-500.0,0.00024973,2]
[359558715,1746124242657,-500.0,0.00024973,2]
[359558717,1746124242666,-500.0,0.00024973,2]
[359558719,1746124242676,-500.0,0.00024973,2]
[359558721,1746124242686,-500.0,0.00024973,2]
[359558722,1746124242696,-500.0,0.00024973,2]
[359558724,1746124242705,-437.32299945,0.00024973,2]
[359558726,1746124242715,-504.36536091,0.00024973,2]
[359558727,1746124242725,-500.35887222,0.00024973,2]
[359558729,1746124242734,-500.0,0.00024973,2]
[359558732,1746124242744,-500.0,0.00024973,2]
[359558734,1746124242754,-500.0,0.00024973,2]
[359558735,1746124242764,-151.0,0.0002498,7]
[359558737,1746124242773,-151.0,0.0002498,7]
[359558739,1746124242783,-151.0,0.0002498,7]
[359558740,1746124242794,-381.369101,0.0002498,7]
[359558742,1746124242804,-157.282533,0.0002498,7]
[359558744,1746124242814,-381.369101,0.0002498,7]
[359558745,1746124242824,-1053.280763,0.0002498,7]
[359558747,1746124242833,-1053.280763,0.0002498,7]
[359558749,1746124242843,-151.0,0.0002498,7]
[359558750,1746124242853,-151.0,0.0002498,7]
[359558752,1746124242863,-376.957183,0.0002498,7]
[359558754,1746124242873,-299.411096,0.0002498,7]
[359558755,1746124242882,-376.957183,0.0002498,7]
[359558757,1746124242892,-299.411096,0.0002498,7]
[359558759,1746124242902,-4445.658596,0.0002498,2]
[359558760,1746124242912,-4445.658596,0.0002498,2]
[359558762,1746124242921,-173.643399,0.0002498,7]
[359558764,1746124242931,-151.0,0.0002498,7]
[359558766,1746124242941,-173.643399,0.0002498,7]
[359558767,1746124242951,-160.0,0.0002498,7]
[359558769,1746124242961,-151.0,0.0002498,7]
[359558771,1746124242970,-841.10298755,0.0002498,7]
[359558772,1746124242980,-151.0,0.0002498,7]
[359558774,1746124242989,-160.0,0.0002498,7]
[359558776,1746124242998,-240.801933,0.0002498,7]
[359558777,1746124243007,-823.0,0.00024991,2]
[359558779,1746124243016,-621.0,0.00024991,2]
[359558781,1746124243026,-1056.97042113,0.00025,2]
[359558782,1746124243035,-15000.0,0.00025,2]
[359558784,1746124243045,-2603.45296275,0.00025,2]
[359558786,1746124243055,-206.56531629,0.00025,2]
[359558788,1746124243064,-10364.0,0.00025,2]
[359558789,1746124243073,-840.78436779,0.00025,2]
[359558791,1746124243083,-2764.96440796,0.00025,2]
[359558793,1746124243092,-47509.69492776,0.00025,2]
[359558794,1746124243102,-60511.24985792,0.00025,2]
[359558796,1746124243113,-150.0,0.00025,3]
[359558798,1746124243123,-651.57002622,0.00025,2]
[359558800,1746124243132,-110201.910168,0.00025,2]
[359558801,1746124243142,-608.190841,0.00025,7]
[359558803,1746124243154,-608.190841,0.00025,7]
[359558805,1746124243163,-465.07288712,0.00025064,2]
[359558807,1746124243173,-151.0,0.000253,20]
[359558808,1746124243183,-2160.0,0.00025356,2]
[359558810,1746124243194,-191.682165,0.00025452,2]
[359558812,1746124243204,-500.0,0.00025452,2]
[359558813,1746124243213,-731.90821332,0.00025452,2]
[359558815,1746124243223,-1000.0,0.00025452,2]
[359558817,1746124243232,-500.0,0.00025452,2]
[359558818,1746124243242,-290.60865643,0.00025452,2]
[359558820,1746124243251,-1000.0,0.00025452,2]
[359558822,1746124243260,-1000.0,0.00025452,2]
[359558823,1746124243270,-1000.0,0.00025452,2]
[359558825,1746124243279,-1000.0,0.00025452,2]
[359558827,1746124243289,-1000.0,0.00025452,2]
[359558828,1746124243299,-1000.0,0.00025452,2]
[359558830,1746124243309,-1000.0,0.00025452,2]
[359558832,1746124243318,-400.0,0.00025452,2]
[359558834,1746124243328,-1000.0,0.00025452,2]
[359558835,1746124243338,-1000.0,0.00025452,2]
[359558837,1746124243347,-1000.0,0.00025452,2]
[359558839,1746124243357,-501.63846269,0.00025452,2]
[359558840,1746124243366,-672.90116035,0.00025452,2]
[359558842,1746124243376,-1000.0,0.00025452,2]
[359558844,1746124243385,-1039.48931594,0.00025452,2]
[359558846,1746124243395,-1000.0,0.00025452,2]
[359558847,1746124243405,-1000.0,0.00025452,2]
[359558849,1746124243414,-1000.0,0.00025452,2]
[359558851,1746124243424,-1000.0,0.00025452,2]
[359558852,1746124243433,-900.0,0.00025469,3]
[359558854,1746124243443,-159.99053663,0.000255,2]
[359558856,1746124243453,-250.0,0.00025525,2]
[359558858,1746124243462,-6341.35394396,0.00025558,2]
[359558859,1746124243472,-1397.15181366,0.00025693,13]
[359558861,1746124243482,-151.0,0.000258,11]
[359558863,1746124243492,-1500.0,0.00025948,2]
[359558864,1746124243502,-161.14138799,0.00025967,2]
[359558866,1746124243512,-250.0,0.000261,30]
[359558868,1746124243523,-2000.0,0.00026157,4]
[359558869,1746124243533,-423.20827702,0.00026265,2]
[359558871,1746124243544,-151.0,0.000264,11]
[359558873,1746124243553,-1397.15181366,0.00026417,15]
[359558875,1746124243563,-1514.82425503,0.00026459,2]
[359558876,1746124243574,-423.20827702,0.00026511,2]
[359558878,1746124243584,-151.0,0.00026637,2]
[359558880,1746124243593,-207.4,0.00026637,2]
[359558881,1746124243602,-922.10997939,0.00026652,2]
[359558883,1746124243613,-1000.0,0.00026663,5]
[359558885,1746124243622,-423.20827702,0.00026682,2]
[359558887,1746124243631,-208.151394,0.00026788,2]
[359558888,1746124243641,-151.0,0.00027,12]
[359558890,1746124243650,-160.0,0.00027,3]
[359558892,1746124243661,-423.20827702,0.00027006,2]
[359558893,1746124243671,-1397.15181366,0.00027141,16]
[359558895,1746124243680,-423.20827702,0.00027193,2]
[359558897,1746124243689,-1152.0,0.00027231,2]
[359558898,1746124243699,-183.532,0.0002737,16]
[359558900,1746124243709,-608.190841,0.00027397,7]
[359558902,1746124243718,-608.190841,0.00027397,7]
[359558904,1746124243728,-550.156172,0.00027397,120]
[359558906,1746124243737,-1066.168306,0.00027397,2]
[359558908,1746124243747,-6341.35394396,0.00027422,2]
[359558910,1746124243757,-1542.5066517,0.000275,2]
[359558913,1746124243767,-248.975964,0.00027512,7]
[359558915,1746124243777,-248.975964,0.00027512,7]
[359558917,1746124243787,-151.0,0.00027512,7]
[359558919,1746124243801,-151.0,0.00027512,7]
[359558921,1746124243810,-151.0,0.00027512,7]
[359558923,1746124243820,-324475.00812496,0.00027522,2]
[359558925,1746124243829,-151.0,0.00027522,7]
[359558926,1746124243838,-151.0,0.00027522,7]
[359558927,1746124243847,-151.0,0.00027522,7]
[359558928,1746124243856,-151.0,0.00027522,7]
[359558929,1746124243866,-970.490497,0.00027522,7]
[359558930,1746124243876,-970.490497,0.00027522,7]
[359558931,1746124243886,-164.858528,0.00027522,7]
[359558932,1746124243895,-164.858528,0.00027522,7]
[359558933,1746124243904,-151.0,0.00027522,7]
[359558934,1746124243913,-686.873696,0.00027522,7]
[359558935,1746124243923,-686.873696,0.00027522,7]
[359558936,1746124243933,-189.100894,0.00027522,7]
[359558937,1746124243942,-189.100894,0.00027522,7]
[359558938,1746124243951,-151.0,0.00027522,7]
[359558939,1746124243960,-186.921263,0.00027522,7]
[359558940,1746124243969,-369.948995,0.00027522,7]
[359558941,1746124243978,-186.921263,0.00027522,7]
[359558942,1746124243987,-369.948995,0.00027522,7]
[359558943,1746124243996,-151.0,0.00027522,7]
[359558944,1746124244006,-151.0,0.00027522,7]
[359558945,1746124244015,-151.0,0.00027522,7]
[359558946,1746124244024,-151.0,0.00027522,7]
[359558947,1746124244034,-266.522939,0.00027522,7]
[359558948,1746124244043,-210.126378,0.00027522,7]
[359558949,1746124244052,-266.522939,0.00027522,7]
[359558950,1746124244062,-210.126378,0.00027522,7]
[359558951,1746124244071,-180.60734,0.00027522,7]
[359558952,1746124244079,-180.60734,0.00027522,7]
[359558953,1746124244088,-248.975964,0.00027522,7]
[359558954,1746124244098,-248.975964,0.00027522,7]
[359558955,1746124244107,-151.0,0.00027522,7]
[359558956,1746124244120,-151.0,0.00027522,7]
[359558957,1746124244129,-151.0,0.00027522,7]
[359558958,1746124244138,-151.0,0.00027522,7]
[359558959,1746124244148,-381.369101,0.00027522,7]
[359558960,1746124244159,-381.369101,0.00027522,7]
[359558961,1746124244168,-1053.280763,0.00027522,7]
[359558962,1746124244177,-1053.280763,0.00027522,7]
[359558963,1746124244187,-159.661274,0.00027522,7]
[359558964,1746124244197,-376.957183,0.00027522,7]
[359558965,1746124244206,-299.411096,0.00027522,7]
[359558967,1746124244215,-376.957183,0.00027522,7]
[359558968,1746124244224,-299.411096,0.00027522,7]
[359558969,1746124244233,-4445.658596,0.00027522,2]
[359558970,1746124244243,-4445.658596,0.00027522,2]
[359558972,1746124244252,-173.643399,0.00027522,7]
[359558973,1746124244271,-151.0,0.00027522,7]
[359558976,1746124244283,-173.643399,0.00027522,7]
[359558978,1746124244293,-151.0,0.00027522,7]
[359558980,1746124244302,-151.0,0.00027522,7]
[359558982,1746124244313,-608.190841,0.00027522,7]
[359558984,1746124244323,-608.190841,0.00027522,7]
[359558986,1746124244332,-240.801933,0.00027522,7]
[359558988,1746124244342,-423.20827705,0.00027565,2]
[359558990,1746124244352,-500.0,0.00027573,5]
[359558992,1746124244362,-1800.0,0.00027592,5]
[359558994,1746124244372,-500.0,0.000276,120]
[359558996,1746124244381,-500.0,0.000276,120]
[359558998,1746124244392,-183.91,0.000276,120]
[359559000,1746124244402,-2000.0,0.00027696,4]
[359559002,1746124244412,-500.0,0.00027773,5]
[359559005,1746124244424,-500.0,0.00027773,5]
[359559007,1746124244435,-500.0,0.00027773,5]
[359559009,1746124244445,-500.7900727,0.00027789,2]
[359559011,1746124244455,-160.0,0.00027789,10]
[359559013,1746124244466,-248.581676,0.0002779,7]
[359559015,1746124244476,-151.0,0.0002779,7]
[359559017,1746124244487,-151.0,0.0002779,7]
[359559020,1746124244497,-151.0,0.0002779,7]
[359559022,1746124244508,-219.760607,0.0002779,7]
[359559047,1746124244749,-219.760607,0.0002779,7]
[359559049,1746124244760,-151.0,0.0002779,7]
[359559051,1746124244770,-151.0,0.0002779,7]
[359559053,1746124244781,-151.0,0.0002779,7]
[359559055,1746124244791,-564.642742,0.0002779,2]
[359559058,1746124244806,-151.0,0.0002779,7]
[359559060,1746124244816,-564.642742,0.0002779,2]
[359559062,1746124244827,-160.0,0.00027799,10]
[359559064,1746124244837,-207189.70858146,0.000278,2]
[359559066,1746124244847,-151.0,0.000278,2]
[359559068,1746124244857,-151.0,0.000278,16]
[359559070,1746124244867,-155.158783,0.000278,7]
[359559073,1746124244877,-157.27545,0.000278,7]
[359559075,1746124244887,-151.0,0.000278,7]
[359559077,1746124244899,-219.760607,0.000278,7]
[359559079,1746124244909,-219.760607,0.000278,7]
[359559081,1746124244920,-151.0,0.000278,7]
[359559083,1746124244930,-151.0,0.000278,7]
[359559085,1746124244940,-564.642742,0.000278,2]
[359559087,1746124244949,-151.0,0.000278,7]
[359559089,1746124244959,-564.642742,0.000278,2]
[359559091,1746124244969,-151.0,0.000278,7]
[359559093,1746124244978,-151.0,0.000278,7]
[359559095,1746124244988,-360.0,0.000278,3]
[359559097,1746124244998,-360.0,0.000278,3]
[359559099,1746124245008,-360.0,0.000278,3]
[359559101,1746124245017,-360.0,0.000278,3]
[359559103,1746124245027,-360.0,0.000278,3]
[359559105,1746124245037,-360.0,0.000278,3]